Cogmind - Beta 15 @@@ ROGUE MODE // 2025.06.17 @ 14:19:37 Player: r@sin Result: Destroyed by Autobeam Turret with Autobeam Performance ------------- Evolutions (0) 0 Regions Visited (3) 600 Robots Destroyed (8) 40 Value Destroyed (183) 183 Prototype IDs (0) 0 Alien Tech Used (0) 0 Bonus (62) 62 TOTAL SCORE: 885 Bonus ------- Follower Combat Kills 62 Cogmind --------- Core Integrity 0/250 Matter 300/300 Energy 98/100 System Corruption 1% Temperature Cool (6) Movement Core (50) Location -10/Subcaves Parts ------- > --- POWER (1) -------- (None) > --- PROPULSION (2) --- (None) > --- UTILITY (2) ------ Salvage Targeting Computer > --- WEAPON (2) ------- (None) > --- INVENTORY (5) ---- Ion Engine Improved Heat Sink Light Assault Rifle Subdweller Machine Gun Peak State ------------ > --- POWER ------------ Light Angular Momentum Engine > --- PROPULSION ------- Wheel Compact Wheel > --- UTILITY ---------- Small Storage Unit Hardened Light Armor Plating > --- WEAPON ----------- Beamcaster Light Assault Rifle > --- INVENTORY -------- Ion Engine Improved Heat Sink Subdweller Optics Sensor Array Salvage Targeting Computer Hardened Light Armor Plating Light Assault Rifle Scrap Shield Fragment [Rating: 17] Favorites ----------- Power Light Angular Momentum Engine Engine Light Angular Momentum Engine Power Core Light Nuclear Core Propulsion Compact Wheel Wheel Compact Wheel Utility Small Storage Unit Device Sensor Array Storage Small Storage Unit Processor Salvage Targeting Computer Protection Hardened Light Armor Plating Weapon Light Assault Rifle Energy Gun Medium Laser Ballistic Gun Light Assault Rifle Build | -11 -10 -10 -10 ------- Run | Yrd Mat Min Sub Slots Evolved . | . . . . Power . | . . . . Propulsion . | . . . . Utility . | . . . . Weapon . | . . . . Parts Attached 15 | 6 4 1 4 Power 3 | 1 1 1 . Engine 2 | 1 . 1 . Core 1 | . 1 . . Reactor . | . . . . Propulsion 2 | 2 . . . Treads . | . . . . Leg . | . . . . Wheel 2 | 2 . . . Hover . | . . . . Flight . | . . . . Utility 4 | 1 1 . 2 Device 1 | . 1 . . Storage 1 | 1 . . . Processor 1 | . . . 1 Hackware . | . . . . Protection 1 | . . . 1 Artifact . | . . . . Weapon 6 | 2 2 . 2 Energy Gun 4 | 2 1 . 1 Energy Cannon . | . . . . Ballistic Gun 2 | . 1 . 1 Ballistic Cannon . | . . . . Launcher . | . . . . Special Weapon . | . . . . Impact Weapon . | . . . . Slashing Weapon . | . . . . Piercing Weapon . | . . . . Special Melee Weapon . | . . . . Unidentified Prototypes . | . . . . Parts Lost 4 | . 2 . 2 Power . | . . . . Propulsion 1 | . . . 1 Utility . | . . . . Weapon 3 | . 2 . 1 Highest Loss Streak 2 | . 2 . 1 To Critical Strikes 1 | . . . 1 Average Backups 5 | . 4 8 5 Power . | . . 1 1 Propulsion . | . . . . Utility 2 | . 2 4 3 Weapon 1 | . 1 3 1 Tool/Special . | . . . . Unused Backups 10 | . 2 1 7 Power 1 | . . . 1 Propulsion . | . . . . Utility 5 | . . 1 4 Weapon 4 | . 2 . 2 Tool/Special . | . . . . Average Slot Usage (%) 92 | . 95 100 85 Engine 11 | . 12 7 12 Core 1 | . 2 6 . Wheel 26 | . 28 28 24 Device 12 | . 13 14 11 Storage 13 | . 14 14 11 Energy Gun 11 | . 14 14 7 Ballistic Gun 12 | . 9 14 16 Peak Build Rating 17 | 6 10 12 17 Average Rating 9 | 4 7 11 11 On Entrance 7 | . 6 10 12 Naked Turns 34 | . . . 34 Heaviest Build 25 | 14 15 18 25 Greatest Support 26 | 26 26 26 26 Greatest Overweight (x) 1 | 1 . . 1 Average Overweight (x) . | . . . . Largest Inventory Capacity 8 | 8 8 8 8 Average Capacity 7 | 7 8 8 7 Most Carried 8 | 1 8 8 8 Average Carried 5 | . 4 7 7 Final Capacity 8 | 8 8 8 5 Final Carried 8 | 1 8 8 4 Class Distribution -------------------- 100% | Mutant Dominant Class ---------------- Mutant | -10/Materials Mutant | -10/Mines Mutant | -10/Subcaves Resources | -11 -10 -10 -10 ----------- Run | Yrd Mat Min Sub Matter Collected 401 | 260 64 10 67 Remotely . | . . . . Salvage Created 248 | . 197 . 51 Parts 16 | . 14 . 2 Haulers Intercepted . | . . . . Recyclers Shooed . | . . . . Parts Field Recycled . | . . . . Retrieved Matter . | . . . . Parts Self-Destructed 3 | . . . 3 Prevented . | . . . . Kills | -11 -10 -10 -10 ------- Run | Yrd Mat Min Sub Combat Hostiles Destroyed 6 | . 5 . 1 Guns 6 | . 5 . 1 Classes Destroyed 4 | . 3 . 1 Watcher 2 | . 2 . . Swarmer 3 | . 3 . . Grunt 2 | . 2 . . Subdweller 1 | . . . 1 Best Kill Streak 2 | . 2 . 1 Combat Bots Only 2 | . 2 . 1 Max Kills in Single Turn 1 | . 1 . 1 Gunslinging . | . . . . Exploded . | . . . . Melee . | . . . . Uniques/NPCs Destroyed . | . . . . Combat | -11 -10 -10 -10 -------- Run | Yrd Mat Min Sub Hostile Shots Fired 78 | . 46 . 32 Missed 19 | . 9 . 10 Hits 59 | . 37 . 22 Projectile 59 | . 37 . 22 Critical Strikes 3 | . 2 . 1 Damage Taken 711 | . 427 . 284 Core 252 | . 133 . 119 Absorbed by Shields . | . . . . Core Remaining (%) 100 | 100 . . . Volleys Fired 44 | . 38 . 6 Largest 2 | . 2 . 2 Hottest 95 | . 80 . 95 Shots Fired 74 | . 63 . 11 Gun 74 | . 63 . 11 Cannon . | . . . . Launcher . | . . . . Special . | . . . . Kinetic 36 | . 29 . 7 Thermal 22 | . 18 . 4 Explosive . | . . . . Electromagnetic 16 | . 16 . . Robot Hit Streak 6 | . 6 . 4 Robot Miss Streak 6 | . 6 . . Penetration Max . | . . . . Secondary Targets . | . . . . Shots Hit Robots 30 | . 27 . 3 Core Hits 14 | . 13 . 1 Critical Kills . | . . . . Critical Parts Destroyed . | . . . . Critical Strikes . | . . . . Melee Attacks . | . . . . Impact . | . . . . Slashing . | . . . . Piercing . | . . . . Sneak Attacks . | . . . . Combat Hostiles . | . . . . Follow-up Attacks . | . . . . Damage Inflicted 333 | . 301 . 32 Guns 333 | . 301 . 32 Cannons . | . . . . Explosions . | . . . . Melee . | . . . . Ramming . | . . . . Kinetic 107 | . 100 . 7 Thermal 112 | . 87 . 25 Explosive . | . . . . Electromagnetic 114 | . 114 . . Impact . | . . . . Slashing . | . . . . Piercing . | . . . . Highest Corruption 1 | . 1 1 1 Average Corruption 1 | . 1 1 1 Corruption Purged . | . . . . Corruption Blocked . | . . . . Effects 4 | . . . 4 Message Errors 1 | . . . 1 Energy Discharges 1 | . . . 1 Data Loss (minor) 1 | . . . 1 Alerts 1 | . . . 1 Overload Shots . | . . . . Overflow Damage . | . . . . Projectiles . | . . . . Explosions . | . . . . Melee . | . . . . Knockbacks . | . . . . Impact . | . . . . Kinetic . | . . . . Secondary . | . . . . Self-Inflicted Damage . | . . . . Shots . | . . . . Rammed . | . . . . Targets Rammed . | . . . . Kicked . | . . . . Crushed . | . . . . Highest Temperature 160 | . 160 . 18 Average Temperature 72 | . 73 . 13 Received Heat Transfer 273 | . 162 . 111 Siege Activations . | . . . . Martial Activations . | . . . . Shielding Activations . | . . . . Robots Disrupted . | . . . . Combat Hostiles . | . . . . Robots Corrupted . | . . . . Combat Hostiles . | . . . . Parts Fried . | . . . . Impact Corruptions . | . . . . Robots Melted . | . . . . Combat Hostiles . | . . . . Parts Melted 2 | . 1 . 1 Heat Transferred 333 | . 259 . 74 Parts Sabotaged . | . . . . Parts Stolen . | . . . . Parts Stripped . | . . . . Power Chain Reactions . | . . . . Alert | -11 -10 -10 -10 ------- Run | Yrd Mat Min Sub Maximum Alert Level . | . . . . Low Security (%) 100 | 100 100 100 . Level 1 . | . . . . Level 2 . | . . . . Level 3 . | . . . . Level 4 . | . . . . Level 5 . | . . . . High Security . | . . . . Max Security . | . . . . Peak Influence 65 | . 65 35 . Initial 10 | . . 10 . Average 12 | . 15 6 . Influence Increases 221 | . 149 35 37 Destroy 0b10 Robot/C 140 | . 100 20 20 Destroy 0b10 Robot/NC 10 | . 10 . . Destroy Leader 34 | . 24 10 . Allied During Kill 7 | . . 5 2 Lose Combat Pursuer 30 | . 15 . 15 Influence Decreases 214 | . 121 63 30 Entered New Map 18 | . . 18 . Time Decay 166 | . 111 45 10 Lost Part 10 | . 10 . . Lost Ally 20 | . . . 20 Squads Dispatched 1 | . 1 . . Investigation . | . . . . Extermination . | . . . . Reinforcement 1 | . 1 . . Assault . | . . . . Garrison . | . . . . Intercept . | . . . . Searches Triggered . | . . . . Construction Impeded . | . . . . Haulers Reinforced . | . . . . Active Scanning Responses . | . . . . Cargo Convoy Interrupts . | . . . . Stealth | -11 -10 -10 -10 --------- Run | Yrd Mat Min Sub Distress Signals . | . . . . Communications Jammed . | . . . . Distress Signals . | . . . . Times Spotted 25 | . 13 . 12 Peak Tracking Total 7 | . 3 . 7 Tactical Retreats 4 | . 1 . 3 Traps | -11 -10 -10 -10 ------- Run | Yrd Mat Min Sub Traps Triggered 1 | . 1 . . Indirectly . | . . . . Trap Hack Attempts . | . . . . Triggered . | . . . . Disarmed . | . . . . Reprogrammed . | . . . . Reused . | . . . . Traps Extracted . | . . . . Installed . | . . . . Triggered . | . . . . Machines | -11 -10 -10 -10 ---------- Run | Yrd Mat Min Sub Machines Disabled 1 | . 1 . . Max in Single Turn 1 | . 1 . . Machines Repaired . | . . . . Machines Dismantled . | . . . . Machines Sabotaged . | . . . . Overloaded Fab Kills . | . . . . Hacking | -11 -10 -10 -10 --------- Run | Yrd Mat Min Sub Machines Accessed 2 | . 2 . . Terminals 2 | . 2 . . Fabricators . | . . . . Repair Stations . | . . . . Recycling Units . | . . . . Scanalyzers . | . . . . Garrison Access . | . . . . Total Hacks 2 | . 2 . . Successful 1 | . 1 . . Failed 1 | . 1 . . Catastrophic 1 | . 1 . . Database Lockouts . | . . . . Manual 2 | . 2 . . Terminals 2 | . 2 . . Fabricators . | . . . . Repair Stations . | . . . . Recycling Units . | . . . . Scanalyzers . | . . . . Garrison Access . | . . . . Terminal Hacks 1 | . 1 . . Zone Layout 1 | . 1 . . Fabricator Hacks . | . . . . Repair Station Hacks . | . . . . Recycling Unit Hacks . | . . . . Scanalyzer . | . . . . Garrison Access Hacks . | . . . . Unauthorized Hacks . | . . . . Terminals . | . . . . Fabricators . | . . . . Repair Stations . | . . . . Recycling Units . | . . . . Scanalyzers . | . . . . Garrison Access . | . . . . Data Cores Recovered . | . . . . Used . | . . . . Hacking Detections 2 | . 2 . . Full Trace Events . | . . . . Feedback Events . | . . . . Feedback Blocked . | . . . . Robot Schematics Acquired . | . . . . Robots Built . | . . . . Authchips . | . . . . Time . | . . . . Total Robot Build Rating . | . . . . Part Schematics Acquired . | . . . . Parts Built . | . . . . Authchips . | . . . . Time . | . . . . Total Part Build Rating . | . . . . Parts Repaired . | . . . . Time . | . . . . Parts Recycled . | . . . . Recycled Matter . | . . . . Retrieved Matter . | . . . . Retrieved Components . | . . . . Parts Scanalyzed . | . . . . Part Schematics Acquired . | . . . . Parts Damaged . | . . . . Bothacking | -11 -10 -10 -10 ------------ Run | Yrd Mat Min Sub Used RIF Installer . | . . . . Robots Hacked . | . . . . Non-combat . | . . . . Combat . | . . . . Robot Hacks Applied . | . . . . Relay Couplers Released . | . . . . Fabnet Peak Effective % . | . . . . Robots Rewired . | . . . . Allies Hacked . | . . . . Hacks Repelled . | . . . . Allies | -11 -10 -10 -10 -------- Run | Yrd Mat Min Sub Total Allies 4 | . . 4 . Largest Group 4 | . . 4 4 Highest-Rated Group 71 | . . 71 71 Highest-Rated Ally 31 | . . 31 31 Total Orders . | . . . . Ally Attacks 19 | . . 2 17 Total Damage 234 | . . 21 213 Kills 3 | . . 1 2 Allies Corrupted . | . . . . Allies Melted 1 | . . . 1 Intel | -11 -10 -10 -10 ------- Run | Yrd Mat Min Sub Active Infowar (turns) 1167 | . 546 197 424 Sensors 1167 | . 546 197 424 Robot Analysis Total . | . . . . Derelict Logs Recovered 1 | . . . 1 Drone Launches . | . . . . Drone Recoveries . | . . . . Exploration | -11 -10 -10 -10 ------------- Run | Yrd Mat Min Sub Turns Passed 1318 | 40 553 197 528 Spaces Moved 1267 | 34 477 163 593 Core 123 | 4 . . 119 Treads . | . . . . Legs . | . . . . Wheels 1144 | 30 477 163 474 Hover . | . . . . Flight . | . . . . Fastest Speed 50 | 50 90 90 50 Average Speed 86 | 88 90 90 83 Slowest Speed 115 | 100 90 90 115 Overloaded Moves . | . . . . Propulsion Burnouts . | . . . . Robots Hopped . | . . . . Potential Cave-ins . | . . . . Cave-ins Triggered . | . . . . Exploration Rate (%) 32 | 3 56 40 31 Regions Visited 3 Branch Regions 2 Pre-discovered Areas 1 | . . . 1 Known Exits Taken . | . . . . Unknown Exits Taken 3 | 1 1 1 . Scrap Searched . | . . . . Spaces Dug . | . . . . Terrain Destroyed . | . . . . Melee . | . . . . Projectile . | . . . . AOE . | . . . . Terrain Rammed . | . . . . Walls Destroyed . | . . . . Machines Disabled . | . . . . Actions | -11 -10 -10 -10 --------- Run | Yrd Mat Min Sub Total 1419 | 41 544 214 620 Wait 56 | . 10 46 . Move 1264 | 33 476 162 593 Hop . | . . . . Pick Up 23 | 2 12 2 7 Fast Attach 6 | 5 1 . . Attach 6 | 1 3 . 2 Detach 1 | . 1 . . Swap 5 | . . 1 4 Drop 14 | . 3 3 8 Fire 44 | . 38 . 6 Melee . | . . . . Ram . | . . . . Kick . | . . . . Crush . | . . . . Escape Stasis . | . . . . Rewire . | . . . . Trap . | . . . . Miscellaneous . | . . . . Route ------- -11/Scrapyard -10/Materials (discovered 3 exits: [*Mat x2] / [*Min]) -10/Mines (discovered 2 exits: [*Mat] / [*Sub]) -10/Subcaves History --------- Turn | Location | Event 11 | -11/Scrapyard | Discovered new exit (range 14) 41 | -11/Scrapyard | Entered Materials 96 | -10/Materials | Discovered new exit (range 16) 286 | -10/Materials | Discovered new exit (range 14) 306 | -10/Materials | Build established: Mutant 401 | -10/Materials | Discovered new exit (range 10) 511 | -10/Materials | Core integrity fell below 50% 594 | -10/Materials | Entered Mines 623 | -10/Mines | Met a Derelict bent on vengeance 629 | -10/Mines | Assisted by bots powering up and referring to "LRC-V3" 765 | -10/Mines | Discovered new exit (range 5) 768 | -10/Mines | Received a Mining Laser from a helpful Derelict 776 | -10/Mines | Discovered new exit (range 6) 791 | -10/Mines | Entered Subcaves 791 | -10/Subcaves | Accompanied by 4 allies 792 | -10/Subcaves | Approached by a straggling Scientist 875 | -10/Subcaves | Learned location of Zion (-6) 875 | -10/Subcaves | Met a Zionite searching for "candidates" 921 | -10/Subcaves | Learned 8 Materials zone layouts 1151 | -10/Subcaves | Shifting Twisted Machinery released Sub. Optics 1215 | -10/Subcaves | Core integrity fell below 20% 1238 | -10/Subcaves | A swath of the cavern ceiling suddenly collapsed 1258 | -10/Subcaves | Released all parts (4) 1285 | -10/Subcaves | Shifting Twisted Machinery released Sub. Machine Gun 1310 | -10/Subcaves | Shifting Twisted Machinery released Shrapnel Trap 1319 | -10/Subcaves | Destroyed by Autobeam Turret with Autobeam Last Messages --------------- 01214_ Acquired 35 matter. 01219_ Acquired 10 matter. 01222_ Wheel destroyed. 01222_ Dropped Sml. Storage Unit. 01223_ Dropped Lgt. Assault Rifle. A swath of the cavern ceiling suddenly collapses. 01258_ Released Hrd. Light Armor Plating. 01258_ Released Beamcaster. 01258_ Released Com. Wheel. 01258_ Released Lgt. Angular Momentum Engine. Sub. Machine Gun falls loose from the Twisted Machinery. 01286_ Dropped Scrap Shield Fragment. 01287_ Acquired Sub. Machine Gun. Shrapnel Trap falls loose from the Twisted Machinery. 01314_ Acquired 9 matter. 01318_ Acquired 1 matter. 01319_ DGI 9GIZZG SAYKUWDRX& Map ----- +----------------------------------------------------+ | ## #??# #??????##?????????????????????????????? | | ####??# #??###? ##????????????????????????????? | | #???### #### ## ##???????????????????????????? | | ##?## # #??? ???????????????????????? | | ### #??# #??????????????????????? | | " #?? ???????????????????????? | | "" #??# ???????????????????????? | | " ## ##### ????????????????????????? | | " ### #### #????????????????????????? | | " #### ##?# # ?????????????????????????? | | ""##??###?## ## ??????????????????????????? | | ###????#### ## #?##???????????????????????? | | ????#### # ## ##??????????????????????? | | ????""" ## # ##?????????????????????? | | ??" "" # #?????????????????????? | | ??" "" ## #?????????????????????? | | ??" ## " ### ##????###??????????????? | | ?????## & ### ####### ##?????????????? | | ??????###### ### #?????????????? | | ???????????# ## #?????????????? | | ???????????## ## #??????????????? | | ????????????####### #???????????????? | | ??????????????????####% ###???????????????? | | ?????????????????????# #####?????????????????? | | ?????????????????##### %#######???????????????? | | ??????????t s @ #???????????????? | | ?????????? #???????????????? | | ??????????t s #???????????????? | | ????????? s###### %#???????????????? | | ?????????? ???????# #??????????????? | | ???????????????????# %#??????????????? | | ?????????????????? ## ####??????????????? | | ????????????????? ?## #?????????????????? | | ???????????????? ??## ##?????????????????? | | ???????????????## ???## ##??????????????????? | | ????????????????# ??????##???????????????????? | | ????????????????# ???????????????????????????? | | ????????????????# ???????????????????????????? | | ???????????????????????????????????????????????? | | ???????????????????????????????????????????????? | | ???????????????????????????????????????????????? | | ???????????????????????????????????????????????? | | ???????????????????????????????????????????????? | | ???????????????????????????????????????????????? | | ???????????????????????????????????????????????? | | ???????????????????????????????????????????????? | | ???????????????????????????????????????????????? | | ???????????????????????????????????????????????? | | ???????????????????????????????????????????????? | | ???????????????????????????????????????????????? | +----------------------------------------------------+ Best States ------------- Heat Dissipation 25 Energy Generation 18 Energy Capacity 250 Matter Stores 300 Matter Capacity 300 Sight Range 16 Robot Scan Range 14 Terrain Scan Density 10 Armor Coverage 150 Evasion (%) 50 Salvage Targeting 1 Item Schematics ----------------- None Robot Schematics ------------------ None Fabricated ------------ Nothing Repaired ---------- Nothing Alien Tech Used ----------------- None Achievements -------------- None Challenges ------------ None Game ------ Seed PhysicsThiefDevice Manual? 0 Play Time 00:18:40 Cumulative 76.2 hours Start 2025.06.17 @ 14:03:07 End 2025.06.17 @ 14:19:37 Sessions 1 Manual Loads 0 Difficulty Rogue Special Mode None Game No. 45 Rogue 27 Adventurer 9 Explorer 9 Win Type - Total 11 Types 8/0/2/1/0/0/0/0/0/0 Lore% 44 Gallery% 49 Achievement% 63 Wizard Run 0 Options --------- Layout 1 ASCII 0 Keyboard 1 Movement Vi Keybinds 0 Fullscreen 1 Font 24/Smallcaps Map View 50x35 Zoom Use 0% Tactical HUD 1 Map Filters NONE Filters NONE Steam 1 RUN: fad74772-2431-4c7c-be43-2c02b93acce7